fUSD/lending_fUSD_20240727
["ID","MTS","AMOUNT","RATE_DAILY","PERIOD"]
[333378085,1722082255491,-1313.41,0.00010999,2]
[333378086,1722082255501,-1313.41,0.00010999,2]
[333378087,1722082255511,-1313.41,0.00010999,2]
[333378088,1722082255523,-1313.41,0.00010999,2]
[333378089,1722082255534,-1313.41,0.00010999,2]
[333378090,1722082255545,-1313.41,0.00010999,2]
[333378091,1722082255554,-1313.41,0.00010999,2]
[333378092,1722082255565,-1313.64949335,0.00010999,2]
[333378093,1722082255575,-666.58,0.00010999,2]
[333378094,1722082255586,-666.58,0.00010999,2]
[333378095,1722082255596,-666.58,0.00010999,2]
[333378096,1722082255606,-666.58,0.00010999,2]
[333378097,1722082255617,-666.58,0.00010999,2]
[333378098,1722082255627,-666.58,0.00010999,2]
[333378099,1722082255638,-666.58,0.00010999,2]
[333378100,1722082255649,-666.58,0.00010999,2]
[333378101,1722082255873,-666.58,0.00010999,2]
[333378102,1722082255884,-666.58,0.00010999,2]
[333378103,1722082255895,-666.64,0.00010999,2]
[333378104,1722082255905,-500.0,0.00010999,2]
[333378105,1722082255915,-500.0,0.00010999,2]
[333378106,1722082255924,-500.0,0.00010999,2]
[333378107,1722082255934,-500.0,0.00010999,2]
[333378108,1722082255944,-500.0,0.00010999,2]
[333378109,1722082255953,-500.0,0.00010999,2]
[333378110,1722082255964,-500.0,0.00010999,2]
[333378111,1722082255974,-500.0,0.00010999,2]
[333378112,1722082255987,-500.0,0.00010999,2]
[333378113,1722082255997,-287.2677019,0.00010999,2]
[333378114,1722082256007,-500.0,0.00010999,2]
[333378115,1722082256017,-500.0,0.00010999,2]
[333378116,1722082256028,-500.0,0.00010999,2]
[333378117,1722082256037,-500.0,0.00010999,2]
[333378118,1722082256057,-476.94,0.00010999,2]
[333378119,1722082256069,-500.0,0.00010999,2]
[333378120,1722082256080,-533.10250731,0.00010999,2]
[333378121,1722082256091,-1000.0,0.00010999,2]
[333378122,1722082256101,-1000.5888,0.00010999,2]
[333378123,1722082256112,-1000.0,0.00010999,2]
[333378124,1722082256122,-500.0,0.00010999,2]
[333378125,1722082256132,-500.0,0.00010999,2]
[333378126,1722082256143,-500.0,0.00010999,2]
[333378127,1722082256153,-500.0,0.00010999,2]
[333378128,1722082256163,-500.0,0.00010999,2]
[333378129,1722082256173,-500.0,0.00010999,2]
[333378130,1722082256184,-500.0,0.00010999,2]
[333378131,1722082256194,-500.0,0.00010999,2]
[333378132,1722082256204,-373.74504615,0.00010999,2]
[333378133,1722082256215,-971.36,0.00010999,2]
[333378134,1722082256226,-971.36,0.00010999,2]
[333378135,1722082256236,-971.36,0.00010999,2]
[333378136,1722082256247,-971.36,0.00010999,2]
[333378137,1722082256257,-971.36,0.00010999,2]
[333378138,1722082256270,-971.36,0.00010999,2]
[333378139,1722082256281,-971.36,0.00010999,2]
[333378140,1722082256291,-971.36,0.00010999,2]
[333378141,1722082256304,-971.55735081,0.00010999,2]
[333378142,1722082256315,-1307.2,0.00010999,2]
[333378143,1722082256325,-1307.2,0.00010999,2]
[333378144,1722082256335,-1307.2,0.00010999,2]
[333378145,1722082256345,-1307.2,0.00010999,2]
[333378146,1722082256355,-1307.2,0.00010999,2]
[333378147,1722082256365,-1307.2,0.00010999,2]
[333378148,1722082256376,-1307.2,0.00010999,2]
[333378149,1722082256386,-1307.2,0.00010999,2]
[333378150,1722082256396,-1307.32917721,0.00010999,2]
[333378151,1722082256406,-524.64,0.00010999,2]
[333378152,1722082256417,-524.64,0.00010999,2]
[333378153,1722082256427,-524.64,0.00010999,2]
[333378154,1722082256437,-524.64,0.00010999,2]
[333378155,1722082256447,-524.64,0.00010999,2]
[333378156,1722082256457,-524.64,0.00010999,2]
[333378157,1722082256467,-524.64,0.00010999,2]
[333378158,1722082256478,-524.64,0.00010999,2]
[333378159,1722082256488,-524.64,0.00010999,2]
[333378160,1722082256499,-524.64,0.00010999,2]
[333378161,1722082256508,-524.64,0.00010999,2]
[333378162,1722082256519,-524.64,0.00010999,2]
[333378163,1722082256530,-524.64,0.00010999,2]
[333378164,1722082256540,-524.64,0.00010999,2]
[333378165,1722082256550,-524.64,0.00010999,2]
[333378166,1722082256560,-524.64,0.00010999,2]
[333378167,1722082256571,-524.64,0.00010999,2]
[333378168,1722082256581,-524.8743,0.00010999,2]
[333378169,1722082256592,-1001.79,0.00010999,2]
[333378170,1722082256602,-1001.79,0.00010999,2]
[333378171,1722082256612,-1001.79,0.00010999,2]
[333378172,1722082256622,-1001.79,0.00010999,2]
[333378173,1722082256632,-1001.79,0.00010999,2]
[333378174,1722082256641,-500.0,0.00010999,2]
[333378175,1722082256651,-1001.79,0.00010999,2]
[333378176,1722082256661,-500.0,0.00010999,2]
[333378177,1722082256671,-1001.79,0.00010999,2]
[333378178,1722082256680,-500.0,0.00010999,2]
[333378179,1722082256690,-1001.79,0.00010999,2]
[333378180,1722082256699,-500.0,0.00010999,2]
[333378181,1722082256709,-1001.79,0.00010999,2]
[333378182,1722082256718,-500.0,0.00010999,2]
[333378183,1722082256728,-1001.79,0.00010999,2]
[333378184,1722082256738,-500.0,0.00010999,2]
[333378185,1722082256747,-1001.79,0.00010999,2]
[333378186,1722082256757,-1001.79,0.00010999,2]
[333378187,1722082256769,-500.0,0.00010999,2]
[333378188,1722082256779,-500.0,0.00010999,2]
[333378189,1722082256788,-1001.79,0.00010999,2]
[333378190,1722082256798,-500.0,0.00010999,2]
[333378191,1722082256808,-473.91033999,0.00010999,2]
[333378192,1722082256861,-26.08966001,0.00010999,2]
[333378193,1722082256870,-1001.79,0.00010999,2]
[333378194,1722082256880,-500.0,0.00010999,2]
[333378195,1722082256890,-1001.79,0.00010999,2]
[333378196,1722082256900,-1001.79,0.00010999,2]
[333378197,1722082256909,-463.41095612,0.00010999,2]
[333378198,1722082256919,-1001.79,0.00010999,2]
[333378199,1722082256928,-105.64669935,0.00010999,2]
[333378273,1722083432903,-704.67,8.219e-05,2]
[333378274,1722083432914,-1221.3423,9.9e-05,2]
[333378275,1722083432925,-167.70597801,9.935e-05,2]
[333378276,1722083432936,-1000.0,9.935e-05,2]
[333378277,1722083432946,-250.0,9.94e-05,2]
[333378278,1722083432957,-2000.0,9.94e-05,2]
[333378279,1722083432968,-6966.77,0.0001,2]
[333378280,1722083432980,-1250.0,0.0001,2]
[333378281,1722083432991,-159.50772199,0.00010003,2]
[333378282,1722083433127,-175.79227801,0.00010003,2]
[333378283,1722083433138,-171.97,0.00010268,2]
[333378284,1722083433149,-193.19,0.00010422,2]
[333378285,1722083433160,-704.67,0.00010477,2]
[333378286,1722083433171,-220.84,0.00010767,2]
[333378287,1722083433181,-1176.0,0.00010775,2]
[333378288,1722083433192,-150.0,0.00010879,2]
[333378289,1722083433204,-2488.99381724,0.0001088,2]
[333378290,1722083433217,-334.13651289,0.0001088,2]
[333378291,1722083433231,-1657.8322,0.0001088,2]
[333378292,1722083433245,-319.86038199,0.0001088,2]
[333378311,1722083438253,-1606.73102151,0.0001088,2]
[333378312,1722083438264,-1451.33807564,0.0001088,2]
[333378313,1722083438275,-1427.25349251,0.0001088,2]
[333378314,1722083438314,-339.84575484,0.0001088,2]
[333378315,1722083438325,-14741.93903251,0.0001088,2]
[333378316,1722083438380,-26683.00247592,0.0001088,2]
[333378317,1722083438394,-8152.30575748,0.0001088,2]
[333378318,1722083438439,-8208.53520196,0.0001088,2]
[333378319,1722083438454,-1003.66405999,0.0001088,2]
[333378320,1722083438466,-1989.47898931,0.0001088,2]
[333378321,1722083438504,-981.55224733,0.0001088,2]
[333378322,1722083438515,-817.15530766,0.0001088,2]
[333378323,1722083438528,-516.65278385,0.0001088,2]
[333378493,1722083440247,-1001.30950324,0.00010775,2]
[333378509,1722083440361,-299.69049676,0.00010775,2]
[333378511,1722083440371,-302.31717625,0.0001088,2]
[333378513,1722083440382,-923.15264686,0.0001088,2]
[333378518,1722083440421,-4652.01359269,0.0001088,2]
[333378520,1722083440433,-921.3,0.0001088,2]
[333378523,1722083440444,-267.2083563,0.0001088,2]
[333378527,1722083440485,-6885.1014996,0.0001088,2]
[333378529,1722083440497,-4302.89567398,0.0001088,2]
[333378535,1722083440546,-3901.4623,0.0001088,2]
[333378537,1722083440557,-498.00325714,0.0001088,2]
[333378539,1722083440570,-394.9925689,0.0001088,2]
[333378742,1722083443248,-30625.615,0.0001088,2]
[333378750,1722083443310,-1597.17608799,0.0001088,2]
[333378756,1722083443371,-1079.31918,0.0001088,2]
[333379066,1722083446303,-519.16812856,0.0001078,2]
[333379164,1722083447216,-562.72737144,0.0001078,2]
[333379166,1722083447226,-1683.99146689,0.0001088,2]
[333379168,1722083447237,-471.03,0.0001088,2]
[333379170,1722083447249,-825.92500001,0.0001088,2]
[333379172,1722083447261,-43423.06144379,0.0001088,2]
[333379438,1722083813698,-399.2,8.219e-05,2]
[333379441,1722083961232,16350.07,0.000191,120]
[333379477,1722084631558,-682.93,8.219e-05,2]
[333379478,1722084631567,-800.0,9.962e-05,2]
[333379479,1722084631577,-200.0,9.999e-05,2]
[333379480,1722084631586,-682.93,0.00010474,2]
[333379481,1722084631596,-161.85188743,0.000105,2]
[333379482,1722084631605,-150.0,0.0001074,2]
[333379483,1722084631615,-747.98811257,0.00010761,2]
[333379484,1722084631626,-688.31817982,0.00010761,2]
[333379485,1722084631638,-197.60189447,0.00010761,2]
[333379486,1722084631647,-150.0,0.00010762,2]
[333379487,1722084631656,-300.0,0.00010762,2]
[333379488,1722084631665,-170.31810553,0.00010763,2]
[333379489,1722084631677,-117.93189447,0.00010763,2]
[333379490,1722084631686,-640.52873749,0.00010763,2]
[333379491,1722084631697,-715.22272661,0.00010763,2]
[333379492,1722084631712,-638.2485359,0.00010763,2]
[333379493,1722084631721,-499.27755715,0.00010763,2]
[333379494,1722084631733,-2783.72244285,0.00010763,2]
[333379496,1722084631742,-1301.0,0.00010763,2]
[333379498,1722084631752,-1651.503,0.00010763,2]
[333379500,1722084631762,-5121.0,0.00010763,2]
[333379502,1722084631771,-1669.0,0.00010763,2]
[333379504,1722084631781,-1271.614,0.00010763,2]
[333379506,1722084631790,-38365.675,0.00010763,2]
[333379508,1722084631799,-157.364,0.00010763,2]
[333379510,1722084631808,-841.52348433,0.00010879,2]
[333379512,1722084631818,-123519.03642559,0.0001088,2]
[333379514,1722084631829,-45186.23371037,0.0001088,2]
[333379516,1722084632047,-1731.28504997,0.0001088,2]
[333379517,1722084632070,-328.64556,0.0001088,2]
[333379523,1722084637470,-713.52089121,0.00010763,2]
[333379524,1722084637482,-359.47910879,0.00010763,2]
[333379525,1722084637492,-150.0,0.00010763,2]
[333379526,1722084637502,-90.52089121,0.0001088,2]
[333379527,1722084637513,-31552.116794,0.0001088,2]
[333379528,1722084637530,-433.52456868,0.0001088,2]
[333379529,1722084637541,-647.57399685,0.0001088,2]
[333379530,1722084637592,-614.32,0.0001088,2]
[333379531,1722084637603,-2709.48663959,0.0001088,2]
[333379532,1722084637652,-255472.81957464,0.0001088,2]
[333379533,1722084637662,-3000.0,0.0001088,2]
[333379534,1722084637671,-104322.98950665,0.0001088,2]
[333379535,1722084637680,-1359.64852889,0.00010887,2]
[333379536,1722084637690,-98286.10020582,0.0001089,2]
[333379537,1722084637699,-11711.83208327,0.0001089,2]
[333379538,1722084637709,-1989.20183995,0.00010899,2]
[333379539,1722084637718,-841.52348433,0.00010899,2]
[333379540,1722084637727,-220.13,0.00010904,3]
[333379541,1722084637736,-500.0,0.0001091,2]
[333379542,1722084637746,-500.0,0.00010911,2]
[333379543,1722084637756,-500.0,0.00010958,2]
[333379544,1722084637765,-500.0,0.00010958,2]
[333379545,1722084637776,-500.0,0.00010958,2]
[333379546,1722084637786,-513.45044748,0.00010958,2]
[333379547,1722084637795,-500.0,0.00010958,2]
[333379548,1722084637805,-153.04500001,0.00010958,2]
[333379549,1722084637815,-500.0,0.00010958,2]
[333379550,1722084637825,-500.0,0.00010958,2]
[333379551,1722084637835,-590.62,0.00010958,2]
[333379552,1722084637844,-350.69040129,0.00010958,2]
[333379553,1722084637854,-500.0,0.00010958,2]
[333379554,1722084637865,-500.0,0.00010958,2]
[333379555,1722084637875,-500.0,0.00010958,2]
[333379556,1722084637884,-490.85934913,0.00010958,2]
[333379558,1722084637895,-519.30316936,0.00010958,2]
[333379560,1722084637905,-512.59,0.00010958,2]
[333379562,1722084637914,-500.0,0.00010958,2]
[333379564,1722084637923,-500.0,0.00010958,2]
[333379565,1722084637933,-500.0,0.00010958,2]
[333379567,1722084637943,-500.0,0.00010958,2]
[333379569,1722084637953,-500.0,0.00010958,2]
[333379571,1722084637962,-500.0,0.00010958,2]
[333379573,1722084637972,-643.36,0.00010958,2]
[333379575,1722084637981,-500.0,0.00010958,2]
[333379577,1722084637991,-500.0,0.00010958,2]
[333379579,1722084638000,-411.55,0.00010958,2]
[333379581,1722084638009,-500.0,0.00010958,2]
[333379583,1722084638019,-356.69,0.00010958,2]
[333379584,1722084638029,-500.0,0.00010958,2]
[333379586,1722084638038,-173.29,0.00010958,2]
[333379588,1722084638048,-500.0,0.00010958,2]
[333379590,1722084638060,-154.49,0.00010958,2]
[333379592,1722084638070,-500.0,0.00010958,2]
[333379594,1722084638079,-500.0,0.00010958,2]
[333379596,1722084638089,-500.0,0.00010958,2]
[333379598,1722084638099,-272.5824002,0.00010958,2]
[333379600,1722084638109,-499.99999999,0.00010958,2]
[333379602,1722084638118,-498.4750383,0.00010958,2]
[333379604,1722084638128,-500.0,0.00010958,2]
[333379606,1722084638138,-506.57704786,0.00010958,2]
[333379608,1722084638148,-514.94,0.00010958,2]
[333379610,1722084638158,-500.0,0.00010958,2]
[333379612,1722084638167,-498.79137197,0.00010958,2]
[333379614,1722084638177,-500.0,0.00010958,2]
[333379616,1722084638187,-509.34,0.00010958,2]
[333379618,1722084638197,-500.0,0.00010958,2]
[333379620,1722084638206,-500.0,0.00010958,2]
[333379622,1722084638217,-500.0,0.00010958,2]
[333379624,1722084638226,-226.61,0.00010958,2]
[333379626,1722084638236,-500.0,0.00010958,2]
[333379627,1722084638245,-500.0,0.00010958,2]
[333379629,1722084638254,-500.0,0.00010958,2]
[333379631,1722084638265,-636.2,0.00010958,2]
[333379633,1722084638276,-500.0,0.00010958,2]
[333379635,1722084638286,-500.0,0.00010958,2]
[333379637,1722084638298,-500.0,0.00010958,2]
[333379639,1722084638308,-500.0,0.00010958,2]
[333379641,1722084638318,-500.0,0.00010958,2]
[333379643,1722084638328,-500.0,0.00010958,2]
[333379645,1722084638339,-500.0,0.00010958,2]
[333379647,1722084638348,-500.0,0.00010958,2]
[333379649,1722084638358,-500.0,0.00010958,2]
[333379651,1722084638368,-500.0,0.00010958,2]
[333379653,1722084638379,-500.0,0.00010958,2]
[333379655,1722084638388,-500.0,0.00010958,2]
[333379657,1722084638398,-500.0,0.00010958,2]
[333379659,1722084638408,-636.98,0.00010958,2]
[333379661,1722084638417,-500.0,0.00010958,2]
[333379663,1722084638427,-500.0,0.00010958,2]
[333379665,1722084638437,-601.64,0.00010958,2]
[333379667,1722084638447,-500.0,0.00010958,2]
[333379669,1722084638457,-500.0,0.00010958,2]
[333379671,1722084638467,-500.0,0.00010958,2]
[333379694,1722084638678,-500.0,0.00010958,2]
[333379696,1722084638688,-571.15862645,0.00010958,2]
[333379698,1722084638698,-500.0,0.00010958,2]
[333379700,1722084638708,-529.80849113,0.00010958,2]
[333379702,1722084638718,-635.32,0.00010958,2]
[333379704,1722084638727,-500.0,0.00010958,2]
[333379706,1722084638737,-500.0,0.00010958,2]
[333379708,1722084638747,-500.0,0.00010958,2]
[333379710,1722084638756,-464.68488091,0.00010958,2]
[333379712,1722084638766,-500.0,0.00010958,2]
[333379714,1722084638777,-500.0,0.00010958,2]
[333379716,1722084638787,-539.72,0.00010958,2]
[333379717,1722084638797,-500.0,0.00010958,2]
[333379719,1722084638807,-518.58,0.00010958,2]
[333379721,1722084638817,-500.0,0.00010958,2]
[333379723,1722084638827,-500.0,0.00010958,2]
[333379725,1722084638836,-215.29,0.00010958,2]
[333379727,1722084638846,-500.0,0.00010958,2]
[333379729,1722084638855,-500.0,0.00010958,2]
[333379731,1722084638864,-500.0,0.00010958,2]
[333379733,1722084638874,-500.0,0.00010958,2]
[333379735,1722084638883,-227.29811722,0.00010958,2]
[333379737,1722084638893,-600.29,0.00010958,2]
[333379739,1722084638902,-500.0,0.00010958,2]
[333379741,1722084638911,-500.0,0.00010958,2]
[333379743,1722084638920,-500.0,0.00010958,2]
[333379745,1722084638930,-500.0,0.00010958,2]
[333379747,1722084638939,-574.24,0.00010958,2]
[333379749,1722084638949,-500.0,0.00010958,2]
[333379751,1722084638959,-500.0,0.00010958,2]
[333379753,1722084638969,-500.0,0.00010958,2]
[333379755,1722084638979,-500.0,0.00010958,2]
[333379757,1722084638988,-500.0,0.00010958,2]
[333379759,1722084638998,-500.0,0.00010958,2]
[333379761,1722084639007,-500.0,0.00010958,2]
[333379763,1722084639016,-500.0,0.00010958,2]
[333379765,1722084639025,-500.0,0.00010958,2]
[333379767,1722084639035,-500.0,0.00010958,2]
[333379769,1722084639046,-484.18211709,0.00010958,2]
[333379771,1722084639057,-369.68022024,0.00010958,2]
[333379773,1722084639068,-500.0,0.00010958,2]
[333379775,1722084639078,-500.0,0.00010958,2]
[333379777,1722084639088,-500.0,0.00010958,2]
[333379779,1722084639098,-500.0,0.00010958,2]
[333379781,1722084639108,-503.1864916,0.00010958,2]
[333379783,1722084639118,-500.0,0.00010958,2]
[333379785,1722084639128,-500.0,0.00010958,2]
[333379787,1722084639139,-500.0,0.00010958,2]
[333379789,1722084639149,-500.0,0.00010958,2]
[333379791,1722084639158,-608.48489407,0.00010958,2]
[333379793,1722084639168,-500.0,0.00010958,2]
[333379795,1722084639177,-500.0,0.00010958,2]
[333379797,1722084639187,-500.0,0.00010958,2]
[333379798,1722084639197,-346.63344013,0.00010958,2]
[333379800,1722084639207,-500.0,0.00010958,2]
[333379802,1722084639217,-500.0,0.00010958,2]
[333379804,1722084639226,-500.0,0.00010958,2]
[333379806,1722084639236,-500.0,0.00010958,2]
[333379808,1722084639245,-500.0,0.00010958,2]
[333379810,1722084639255,-500.0,0.00010958,2]
[333379812,1722084639264,-500.0,0.00010958,2]
[333379814,1722084639273,-183.96397841,0.00010958,2]
[333379816,1722084639284,-500.0,0.00010958,2]
[333379818,1722084639295,-500.0,0.00010958,2]
[333379820,1722084639305,-500.0,0.00010958,2]
[333379822,1722084639314,-500.0,0.00010958,2]
[333379824,1722084639325,-335.62734368,0.00010958,2]
[333379826,1722084639334,-267.77054585,0.00010958,2]
[333379828,1722084639344,-500.0,0.00010958,2]
[333379830,1722084639354,-500.0,0.00010958,2]
[333379832,1722084639363,-500.0,0.00010958,2]
[333379833,1722084639373,-500.0,0.00010958,2]
[333379834,1722084639383,-500.0,0.00010958,2]
[333379835,1722084639393,-500.0,0.00010958,2]
[333379836,1722084639402,-500.0,0.00010958,2]
[333379837,1722084639412,-500.0,0.00010958,2]
[333379838,1722084639421,-364.93,0.00010958,2]
[333379839,1722084639431,-350.13943815,0.00010958,2]
[333379840,1722084639441,-500.0,0.00010958,2]
[333379841,1722084639450,-470.3996896,0.00010958,2]
[333379842,1722084639460,-500.0,0.00010958,2]
[333379843,1722084639469,-500.0,0.00010958,2]
[333379844,1722084639478,-500.0,0.00010958,2]
[333379845,1722084639488,-500.0,0.00010958,2]
[333379846,1722084639497,-503.27536725,0.00010958,2]
[333379847,1722084639507,-500.0,0.00010958,2]
[333379848,1722084639516,-500.0,0.00010958,2]
[333379850,1722084639526,-350.77118171,0.00010958,2]
[333379852,1722084639535,-500.0,0.00010958,2]
[333379853,1722084639544,-500.0,0.00010958,2]
[333379855,1722084639553,-500.0,0.00010958,2]
[333379858,1722084639564,-917.28,0.00010958,2]
[333379859,1722084639574,-917.28,0.00010958,2]
[333379861,1722084639583,-647.09493787,0.00010958,2]
[333379863,1722084639592,-500.0,0.00010958,2]
[333379865,1722084639602,-500.0,0.00010958,2]
[333379867,1722084639611,-500.0,0.00010958,2]
[333379869,1722084639620,-514.25,0.00010958,2]
[333379871,1722084639630,-500.0,0.00010958,2]
[333379873,1722084639639,-543.32,0.00010958,2]
[333379875,1722084639649,-500.0,0.00010958,2]
[333379877,1722084639659,-309.46,0.00010958,2]
[333379879,1722084639668,-500.0,0.00010958,2]
[333379881,1722084639680,-516.03,0.00010958,2]
[333379883,1722084639694,-516.03,0.00010958,2]
[333379885,1722084639703,-500.0,0.00010958,2]
[333379887,1722084639712,-500.0,0.00010958,2]
[333379889,1722084639721,-500.0,0.00010958,2]
[333379891,1722084639730,-500.0,0.00010958,2]
[333379893,1722084639740,-226.79731112,0.00010958,2]
[333379895,1722084639751,-500.0,0.00010958,2]
[333379897,1722084639761,-500.0,0.00010958,2]
[333379899,1722084639771,-254.76378191,0.00010958,2]
[333379901,1722084639782,-500.0,0.00010958,2]
[333379903,1722084639791,-500.0,0.00010958,2]
[333379905,1722084639802,-500.0,0.00010958,2]
[333379907,1722084639811,-500.0,0.00010958,2]
[333379909,1722084639821,-500.0,0.00010958,2]
[333379911,1722084639830,-500.0,0.00010958,2]
[333379913,1722084639840,-500.0,0.00010958,2]
[333379915,1722084639849,-500.0,0.00010958,2]
[333379917,1722084639859,-500.0,0.00010958,2]
[333379919,1722084639869,-500.0,0.00010958,2]
[333379921,1722084639879,-500.0,0.00010958,2]
[333379923,1722084639888,-500.0,0.00010958,2]
[333379925,1722084639898,-500.0,0.00010958,2]
[333379927,1722084639907,-500.0,0.00010958,2]
[333379929,1722084639917,-500.0,0.00010958,2]
[333379931,1722084639927,-500.0,0.00010958,2]
[333379933,1722084639936,-500.0,0.00010958,2]
[333379935,1722084639945,-500.0,0.00010958,2]
[333379937,1722084639955,-3117.15,0.00010958,2]
[333379939,1722084639965,-3117.15,0.00010958,2]
[333379941,1722084639974,-500.0,0.00010958,2]
[333379943,1722084639984,-179.7,0.00010958,2]
[333379945,1722084639993,-597.36,0.00010958,2]
[333379947,1722084640003,-677.14,0.00010958,2]
[333379949,1722084640012,-500.0,0.00010958,2]
[333379951,1722084640022,-677.14,0.00010958,2]
[333379953,1722084640032,-500.0,0.00010958,2]
[333379955,1722084640042,-500.0,0.00010958,2]
[333379957,1722084640051,-500.0,0.00010958,2]
[333379959,1722084640065,-333.13221826,0.00010958,2]
[333379961,1722084640075,-284.51092208,0.00010958,2]
[333379963,1722084640084,-500.0,0.00010958,2]
[333379965,1722084640094,-500.0,0.00010958,2]
[333379967,1722084640103,-500.0,0.00010958,2]
[333379969,1722084640112,-500.0,0.00010958,2]
[333379971,1722084640122,-500.0,0.00010958,2]
[333379973,1722084640132,-219.91385078,0.00010958,2]
[333379975,1722084640142,-500.0,0.00010958,2]
[333379977,1722084640152,-500.0,0.00010958,2]
[333379979,1722084640162,-500.0,0.00010958,2]
[333379981,1722084640171,-500.0,0.00010958,2]
[333379983,1722084640180,-500.0,0.00010958,2]
[333379985,1722084640190,-500.0,0.00010958,2]
[333379987,1722084640199,-500.0,0.00010958,2]
[333379989,1722084640209,-500.0,0.00010958,2]
[333379991,1722084640219,-500.0,0.00010958,2]
[333379993,1722084640229,-500.0,0.00010958,2]
[333379995,1722084640238,-500.0,0.00010958,2]
[333379997,1722084640248,-643.93,0.00010958,2]
[333379999,1722084640257,-500.0,0.00010958,2]
[333380001,1722084640267,-500.0,0.00010958,2]
[333380003,1722084640278,-500.0,0.00010958,2]
[333380005,1722084640288,-500.0,0.00010958,2]
[333380007,1722084640299,-198.79869721,0.00010958,2]
[333380009,1722084640309,-500.0,0.00010958,2]
[333380011,1722084640318,-180.29,0.00010958,2]
[333380013,1722084640328,-321.73418785,0.00010958,2]
[333380015,1722084640337,-500.0,0.00010958,2]
[333380017,1722084640347,-478.01,0.00010958,2]
[333380019,1722084640356,-500.0,0.00010958,2]
[333380021,1722084640365,-241.12,0.00010958,2]
[333380023,1722084640375,-500.0,0.00010958,2]
[333380025,1722084640385,-500.0,0.00010958,2]
[333380027,1722084640394,-500.0,0.00010958,2]
[333380029,1722084640403,-500.0,0.00010958,2]
[333380031,1722084640414,-581.14,0.00010958,2]
[333380033,1722084640423,-500.0,0.00010958,2]
[333380034,1722084640432,-500.0,0.00010958,2]
[333380036,1722084640442,-645.28,0.00010958,2]
[333380038,1722084640452,-500.0,0.00010958,2]
[333380040,1722084640461,-500.0,0.00010958,2]
[333380042,1722084640471,-611.5,0.00010958,2]
[333380044,1722084640481,-500.0,0.00010958,2]
[333380046,1722084640491,-424.84,0.00010958,2]
[333380048,1722084640500,-500.0,0.00010958,2]
[333380050,1722084640509,-500.0,0.00010958,2]
[333380052,1722084640519,-541.36,0.00010958,2]
[333380054,1722084640528,-500.0,0.00010958,2]
[333380056,1722084640538,-500.0,0.00010958,2]
[333380058,1722084640548,-159.3,0.00010958,2]
[333380060,1722084640557,-541.32,0.00010958,2]
[333380062,1722084640567,-500.0,0.00010958,2]
[333380064,1722084640577,-500.0,0.00010958,2]
[333380066,1722084640587,-500.0,0.00010958,2]
[333380068,1722084640596,-500.0,0.00010958,2]
[333380070,1722084640606,-500.0,0.00010958,2]
[333380072,1722084640615,-500.0,0.00010958,2]
[333380074,1722084640625,-500.0,0.00010958,2]
[333380075,1722084640634,-500.0,0.00010958,2]
[333380077,1722084640644,-598.96,0.00010958,2]
[333380079,1722084640657,-598.96,0.00010958,2]
[333380081,1722084640666,-598.96,0.00010958,2]
[333380083,1722084640676,-500.0,0.00010958,2]